fUSD/lending_fUSD_20240701
["ID","MTS","AMOUNT","RATE_DAILY","PERIOD"]
[330815776,1719836437406,155.33779302,0.00011199,2]
[330815777,1719836454601,198.28264365,0.00011199,2]
[330815778,1719836539542,-450.0,0.00012252,2]
[330815779,1719836539573,-155.0552073,0.00012314,2]
[330815780,1719836539600,-227.0716558,0.00012314,2]
[330815781,1719836539629,-305.13007106,0.00012314,2]
[330815782,1719836539656,-250.0,0.00012376,2]
[330815783,1719836539684,-345.22,0.00012389,2]
[330815784,1719836539712,-12645.04613168,0.00012389,2]
[330815785,1719836539726,-450.0,0.00012389,2]
[330815786,1719836539741,-155.0552073,0.00012389,2]
[330815787,1719836539753,-227.0716558,0.00012389,2]
[330815788,1719836539768,-305.13007106,0.00012389,2]
[330815789,1719836539781,-250.0,0.00012389,2]
[330815790,1719836539796,-345.22,0.00012389,2]
[330815791,1719836539812,-9512.47693416,0.00012389,2]
[330815792,1719836539821,-169.27,0.00012413,2]
[330815793,1719836539831,-208.65,0.00012485,2]
[330815794,1719836539840,-493.28,0.00012738,2]
[330815795,1719836539850,-473.0272,0.00012758,2]
[330815796,1719836539859,-499.99,0.0001283,2]
[330815797,1719836642734,2374.1385064,0.00011199,2]
[330815798,1719836644616,626.89619143,0.00011199,2]
[330815799,1719836685913,443.95,0.0001049,2]
[330815800,1719836691402,193.54674215,0.00011199,2]
[330815801,1719836731771,368.59840723,0.00011199,2]
[330815802,1719836762269,1341.41519294,0.00011199,2]
[330815803,1719836763899,182.48651472,0.00011199,2]
[330815804,1719836778689,-250.0,0.00012391,2]
[330815805,1719836778716,-250.0,0.00012397,2]
[330815806,1719836778740,-130.0,0.00012501,2]
[330815808,1719836877653,158.73260561,0.00011199,2]
[330815809,1719836933168,527.57112597,0.00011199,2]
[330815810,1719836967421,155.0,0.00011199,2]
[330815823,1719837032452,-2004.97925289,0.00012273,2]
[330815824,1719837032462,-1341.41519294,0.00012302,2]
[330815825,1719837032472,-626.89619143,0.00012302,2]
[330815826,1719837032481,-193.54674215,0.00012302,2]
[330815827,1719837032490,-78.65,0.00012501,2]
[330815828,1719837032500,-1815.42,0.00012502,2]
[330815829,1719837032510,-443.95,0.00012754,2]
[330815830,1719837032519,-300.0,0.00013155,2]
[330815831,1719837032528,-6949.0688,0.00013156,2]
[330815832,1719837032537,-368.15,0.00013221,2]
[330815833,1719837032547,-605.6,0.00013221,2]
[330815834,1719837032556,-368.15,0.00013224,2]
[330815835,1719837032565,-299.99,0.00013224,2]
[330815836,1719837032575,-368.15,0.00013228,2]
[330815837,1719837032584,-368.15,0.00013231,2]
[330815838,1719837032593,-499.99,0.00013231,2]
[330815839,1719837032604,-368.15,0.00013235,2]
[330815840,1719837032614,-368.15,0.00013238,2]
[330815841,1719837032624,-368.15,0.00013242,2]
[330815842,1719837032633,-368.15,0.00013245,2]
[330815843,1719837032643,-368.15,0.00013249,2]
[330815844,1719837032653,-368.15,0.00013252,2]
[330815845,1719837032662,-368.15,0.00013255,2]
[330815846,1719837032672,-368.15,0.00013259,2]
[330815847,1719837032682,-368.15,0.00013262,2]
[330815848,1719837032691,-368.15,0.00013266,2]
[330815849,1719837032700,-368.15,0.00013269,2]
[330815850,1719837032709,-150.0,0.00013272,2]
[330815851,1719837032718,-368.15,0.00013273,2]
[330815852,1719837032727,-368.15,0.00013276,2]
[330815853,1719837032737,-368.15,0.0001328,2]
[330815854,1719837032746,-368.15,0.00013283,2]
[330815855,1719837032755,-368.15,0.00013287,2]
[330815856,1719837032765,-1000.0,0.00013308,2]
[330815857,1719837032774,-1494.2292,0.00013374,2]
[330815858,1719837032784,-71055.4336,0.00013474,2]
[330815859,1719837032793,-155.0,0.00013574,2]
[330815860,1719837032803,-22467.9357,0.00013636,2]
[330815861,1719837032813,-679.8807,0.00013636,2]
[330815862,1719837032822,-457.7298,0.0001369,2]
[330815863,1719837032832,-163.42,0.00013699,2]
[330815864,1719837032841,-254.16,0.00013699,2]
[330815865,1719837032851,-29999.99,0.00013699,2]
[330815867,1719837032861,-328.75485163,0.000137,2]
[330815868,1719837032870,-173.26,0.00013712,2]
[330815869,1719837032879,-13174.59595688,0.0001379,2]
[330815870,1719837032888,-385.20646348,0.00013794,2]
[330815871,1719837032898,-245000.0,0.00013799,2]
[330815872,1719837032907,-1258.785,0.00013799,2]
[330815873,1719837032917,-6950.4756,0.00013799,2]
[330815874,1719837032926,-1000.0,0.00013799,2]
[330815875,1719837032935,-4926.33585103,0.00013799,2]
[330815876,1719837032945,-160.13713916,0.000138,2]
[330815877,1719837032954,-189.01351893,0.000138,2]
[330815878,1719837032963,-1383.82396,0.0001386,2]
[330815879,1719837032973,-1271.83667066,0.00013889,2]
[330815880,1719837032982,-190.85369923,0.00013889,2]
[330815881,1719837032991,-166.41736426,0.0001389,2]
[330815882,1719837033001,-416.88024936,0.00013903,2]
[330815883,1719837033010,-235.985941,0.00013973,2]
[330815884,1719837033019,-194.18126619,0.00013979,2]
[330815885,1719837033028,-823.0,0.00013989,2]
[330815886,1719837033038,-526600.8624512,0.00013989,2]
[330815887,1719837033047,-388034.98881048,0.00013989,2]
[330815888,1719837033064,-581.06799919,0.00013989,2]
[330815889,1719837033080,-1500.0,0.00013989,2]
[330815890,1719837033092,-36737.70285173,0.00013989,2]
[330815891,1719837033109,-3299.21382241,0.00013989,2]
[330815892,1719837033120,-10262.18339989,0.00013989,2]
[330815893,1719837033132,-522.3297664,0.00013989,2]
[330815894,1719837033143,-107110.46251605,0.00013989,2]
[330815895,1719837033153,-151.0,0.00013989,2]
[330815896,1719837033163,-151.0,0.00013989,2]
[330815897,1719837033172,-268.456429,0.00013989,2]
[330815898,1719837033183,-151.0,0.00013989,2]
[330815899,1719837033194,-268.456429,0.00013989,2]
[330815900,1719837033204,-715.4114969,0.00013989,2]
[330815901,1719837033213,-151.0,0.00013989,2]
[330815902,1719837033223,-151.0,0.00013989,2]
[330815903,1719837033232,-151.0,0.00013989,2]
[330815904,1719837033246,-151.0,0.00013989,2]
[330815905,1719837033255,-164.058643,0.00013989,2]
[330815906,1719837033266,-164.058643,0.00013989,2]
[330815907,1719837033276,-210.502817,0.00013989,2]
[330815908,1719837033286,-210.502817,0.00013989,2]
[330815909,1719837033295,-151.0,0.00013989,2]
[330815910,1719837033305,-529.879366,0.00013989,2]
[330815911,1719837033315,-529.879366,0.00013989,2]
[330815912,1719837033326,-151.0,0.00013989,2]
[330815913,1719837033335,-228.29749,0.00013989,2]
[330815914,1719837033345,-228.29749,0.00013989,2]
[330815915,1719837033356,-185.416506,0.00013989,2]
[330815916,1719837033365,-185.416506,0.00013989,2]
[330815917,1719837033375,-151.0,0.00013989,2]
[330815918,1719837033384,-205.07447,0.00013989,2]
[330815919,1719837033393,-151.0,0.00013989,2]
[330815920,1719837033403,-161.9854,0.00013989,2]
[330815921,1719837033413,-205.07447,0.00013989,2]
[330815922,1719837033423,-151.0,0.00013989,2]
[330815923,1719837033432,-151.0,0.00013989,2]
[330815924,1719837033442,-151.0,0.00013989,2]
[330815925,1719837033451,-151.0,0.00013989,2]
[330815926,1719837033461,-2273.532192,0.00013989,2]
[330815927,1719837033470,-151.0,0.00013989,2]
[330815928,1719837033479,-2273.532192,0.00013989,2]
[330815929,1719837033489,-427.2959255,0.00013989,2]
[330815930,1719837033498,-151.0,0.00013989,2]
[330815931,1719837033508,-151.0,0.00013989,2]
[330815932,1719837033517,-207.71704746,0.00013989,2]
[330815933,1719837033527,-295.333,0.00013989,2]
[330815934,1719837033537,-151.0,0.00013989,2]
[330815935,1719837033547,-30000.000001,0.0001399,3]
[330815936,1719837033556,-415.5194269,0.0001399,2]
[330815937,1719837033566,-268.9298382,0.00013999,2]
[330815938,1719837033575,-1972.160097,0.00013999,2]
[330815939,1719837033585,-7873.55621275,0.00013999,2]
[330815940,1719837033594,-1000.8485,0.00013999,2]
[330815941,1719837033606,-512364.56539438,0.00014,2]
[330815948,1719837038431,-239255.7301235,0.00014,2]
[330815968,1719837043402,-487.0732,0.00013599,2]
[330815969,1719837043412,-615.9268,0.000139,2]
[330815970,1719837043492,-183.28619174,0.000139,2]
[330815971,1719837043502,-738.0,0.00014,2]
[330815972,1719837043511,-98854.76269906,0.00014,2]
[330815973,1719837043640,-48985.69792735,0.00014,2]
[330815993,1719837046527,-151.0,0.00013989,2]
[330815995,1719837046538,-841.38705816,0.00013999,2]
[330815997,1719837046551,-422.24066894,0.00013999,2]
[330816003,1719837046618,626.89619143,0.00011199,2]
[330816004,1719837046657,-708.5323699,0.00013999,2]
[330816006,1719837046668,-1945.96669886,0.00014,2]
[330816008,1719837046681,-2268.81856181,0.00014,2]
[330816018,1719837046761,-6296.2674,0.00014,2]
[330816070,1719837284758,493.21,0.00010471,2]
[330816071,1719837298974,768.85,0.00010959,2]
[330816072,1719837345476,20318.66280891,0.00010959,2]
[330816073,1719837347444,155.0,0.00010959,2]
[330816074,1719837364212,6819.98630487,0.00010959,2]
[330816075,1719837365942,-300.0,0.00011799,2]
[330816076,1719837365966,-9700.0,0.000118,2]
[330816077,1719837366701,-10000.0,0.000118,2]
[330816078,1719837367405,-10000.0,0.000118,2]
[330816079,1719837368254,-10000.0,0.000118,2]
[330816080,1719837368795,-10000.0,0.000118,2]
[330816081,1719837375874,-4588.8546,0.000118,2]
[330816084,1719837470778,-1352.16738173,0.000118,2]
[330816085,1719837470816,-254.00771657,0.000118,2]
[330816086,1719837470840,-155.0,0.000118,2]
[330816087,1719837470863,-9389.0911017,0.000118,2]
[330816088,1719837514628,-1428.0,0.00011799,2]
[330816089,1719837514651,-3036.26093945,0.000118,2]
[330816090,1719837514681,-5535.73906055,0.000118,2]
[330816091,1719837515199,-2013.66698103,0.000118,2]
[330816093,1719837562067,300.0,0.000118,2]
[330816094,1719837578948,210.65124917,0.000118,2]
[330816095,1719837593075,7475.6817698,0.00011199,2]
[330816096,1719837593100,10000.0,0.00011199,2]
[330816097,1719837593122,10000.0,0.00011199,2]
[330816098,1719837593144,10000.0,0.00011199,2]
[330816099,1719837593167,3377.96567645,0.00011199,2]
[330816100,1719837603013,150.0,0.000118,2]
[330816101,1719837603219,150.0,0.000118,2]
[330816102,1719837603398,150.0,0.000118,2]
[330816103,1719837603604,150.0,0.000118,2]
[330816104,1719837603803,150.0,0.000118,2]
[330816105,1719837604234,260.17641462,0.000118,2]
[330816106,1719837623227,1872.10123256,0.000118,2]
[330816107,1719837655100,3739.75667637,0.00011199,2]
[330816108,1719837655126,10000.0,0.00011199,2]
[330816109,1719837655150,1690.55678782,0.00011199,2]
[330816110,1719837656301,8309.44321218,0.00011199,2]
[330816111,1719837656326,9600.25424508,0.00011199,2]
[330816113,1719837704787,399.74575492,0.00011199,2]
[330816114,1719837704810,4316.35795083,0.00011199,2]
[330816115,1719837730594,3735.45045966,0.00011199,2]
[330816116,1719837759999,1948.19158951,0.00011199,2]
[330816117,1719837760023,3434.64083369,0.00011199,2]
[330816118,1719837773830,6565.35916631,0.00011199,2]
[330816119,1719837773854,3959.92974401,0.00011199,2]
[330816120,1719837832777,552.85,0.00010811,2]
[330816121,1719837838295,2374.66560642,0.00011199,2]
[330816122,1719837844505,300.0,0.00012172,2]
[330816123,1719837872611,-10700.0,0.00012173,2]
[330816124,1719837886691,3112.55464957,0.00011199,2]
[330816125,1719837886714,10000.0,0.00011199,2]
[330816126,1719837886738,10000.0,0.00011199,2]
[330816127,1719837886762,1410.40514314,0.00011199,2]
[330816128,1719837888295,3184.20504528,0.00011199,2]
[330816129,1719837889226,5405.38981158,0.00011199,2]
[330816130,1719837889248,818.20882176,0.00011199,2]
[330816131,1719837912608,9181.79117824,0.00011199,2]
[330816132,1719837912639,6248.52228595,0.00011199,2]
[330816133,1719837914764,3751.47771405,0.00011199,2]
[330816134,1719837914793,6878.48820307,0.00011199,2]
[330816135,1719837929406,625.64470959,0.00011199,2]
[330816136,1719837947095,1286.90359013,0.00011199,2]
[330816137,1719837978853,1208.96349721,0.00011199,2]
[330816138,1719837978876,9316.32541311,0.00011199,2]
[330816139,1719838025218,683.67458689,0.00011199,2]
[330816140,1719838025241,2339.67901202,0.00011199,2]
[330816141,1719838025418,1013.16514783,0.00011199,2]
[330816142,1719838047679,463.35873498,0.00011199,2]
[330816143,1719838084627,6183.79710517,0.00011199,2]
[330816144,1719838084651,6700.12802744,0.00011199,2]
[330816145,1719838105193,483.06790317,0.00011199,2]
[330816146,1719838113812,156.02957651,0.00011199,2]
[330816147,1719838125743,2660.77449288,0.00011199,2]
[330816148,1719838125766,1788.73880941,0.00011199,2]
[330816149,1719838128466,8211.26119059,0.00011199,2]
[330816150,1719838128490,1360.05153289,0.00011199,2]
[330816151,1719838136133,156.45363651,0.00011199,2]
[330816152,1719838144855,8483.4948306,0.00011199,2]
[330816153,1719838144878,2041.79407972,0.00011199,2]
[330816154,1719838147955,308.33669956,0.00011199,2]
[330816155,1719838170511,800.63635438,0.00011199,2]
[330816162,1719838179852,155.69092961,0.00011199,2]
[330816163,1719838181814,155.5464279,0.00011199,2]
[330816164,1719838202134,155.97820346,0.00011199,2]
[330816165,1719838206362,647.26467047,0.00011199,2]
[330816166,1719838206773,205.27551127,0.00011199,2]
[330816167,1719838223799,624.15674392,0.00011199,2]
[330816168,1719838228022,660.11977562,0.00011199,2]
[330816174,1719838231673,-300.0,0.00012301,2]
[330816175,1719838231685,-1163.45546276,0.00012302,2]
[330816176,1719838231698,-76.96942653,0.00012302,2]
[330816177,1719838231708,-245.94231586,0.00012302,2]
[330816185,1719838232507,-354.05768414,0.00012302,2]
[330816186,1719838232518,-155.14720774,0.00012314,2]
[330816187,1719838232528,-205.93,0.00012389,2]
[330816188,1719838232539,-223.07790297,0.00012389,2]
[330816189,1719838232551,-26.92209703,0.00012389,2]
[330816190,1719838232562,-425.0028307,0.0001251,2]
[330816191,1719838232575,-188.32937469,0.0001251,2]
[330816192,1719838232586,-150.0,0.00012603,2]
[330816193,1719838232596,-500.0,0.00012636,2]
[330816194,1719838232606,-1000.0,0.00012731,2]
[330816195,1719838232621,-3507.39095033,0.00013,2]
[330816196,1719838232631,-552.85,0.00013075,2]
[330816197,1719838232641,-150.0,0.00013127,2]
[330816198,1719838232651,-336.2150137,0.00013128,2]
[330816199,1719838232661,-191.16454731,0.00013128,2]
[330816200,1719838232670,-210.08678767,0.00013128,2]
[330816201,1719838232680,-173.76628846,0.00013128,2]
[330816202,1719838232691,-155.7612267,0.00013472,2]
[330816203,1719838232701,-1401.82347801,0.00013472,7]
[330816204,1719838232711,-246.63432185,0.00013472,2]
[330816205,1719838232721,-200.0,0.000135,4]
[330816206,1719838232730,-420.0,0.000135,2]
[330816207,1719838232740,-155.0,0.00013516,2]
[330816208,1719838232751,-213.90304588,0.00013516,2]
[330816209,1719838232760,-2374.66560642,0.00013516,2]
[330816210,1719838232770,-456.54945534,0.00013543,2]
[330816211,1719838232780,-7780.83660885,0.00013574,2]
[330816212,1719838232790,-1366.0438993,0.00013574,2]
[330816213,1719838232800,-944.91389166,0.00013574,2]
[330816214,1719838232812,-17351.72761448,0.00013589,2]
[330816215,1719838232821,-629.7,0.00013599,2]
[330816216,1719838232831,-500.0,0.000136,4]
[330816217,1719838232840,-163.42,0.00013699,2]
[330816218,1719838232850,-254.16,0.00013699,2]
[330816219,1719838232859,-101432.2481,0.00013699,2]
[330816220,1719838232868,-700.0,0.000137,5]
[330816221,1719838232878,-150.0,0.00013725,2]
[330816222,1719838232887,-150.0,0.00013727,2]
[330816223,1719838232897,-150.0,0.00013737,2]
[330816224,1719838232906,-150.0,0.00013738,2]
[330816225,1719838232916,-150.0,0.00013755,2]
[330816226,1719838232926,-150.0,0.00013758,2]
[330816227,1719838232936,-150.0,0.00013769,2]
[330816228,1719838232946,-150.0,0.00013772,2]
[330816229,1719838232956,-150.0,0.00013773,2]
[330816230,1719838232965,-150.0,0.00013785,2]
[330816231,1719838232976,-17201.00952183,0.0001379,2]
[330816232,1719838232985,-150.0,0.00013792,2]
[330816233,1719838232995,-150.0,0.00013796,2]
[330816234,1719838233004,-6268.63691597,0.00013799,2]
[330816235,1719838233015,-1000.0,0.000138,5]
[330816236,1719838233025,-193.54674215,0.00013802,2]
[330816237,1719838233035,-150.0,0.00013806,2]
[330816238,1719838233045,-150.0,0.0001382,2]
[330816239,1719838233057,-150.0,0.00013821,2]
[330816240,1719838233067,-150.0,0.00013826,2]
[330816241,1719838233076,-150.0,0.00013833,2]
[330816242,1719838233086,-150.0,0.00013846,2]
[330816243,1719838233095,-150.0,0.00013854,2]
[330816244,1719838233105,-150.0,0.00013856,2]
[330816245,1719838233116,-1153.18663,0.0001386,2]
[330816246,1719838233125,-150.0,0.00013871,2]
[330816247,1719838233135,-150.0,0.00013873,2]
[330816248,1719838233145,-100777.23372637,0.0001388,2]
[330816249,1719838233155,-150.0,0.00013883,2]
[330816250,1719838233165,-150.0,0.00013883,2]
[330816251,1719838233175,-150.0,0.0001389,2]
[330816252,1719838233184,-626.89619143,0.00013899,2]
[330816253,1719838233194,-651.15085502,0.00013899,2]
[330816254,1719838233204,-201.99514089,0.00013899,2]
[330816255,1719838233214,-151.21081512,0.000139,2]
[330816256,1719838233224,-166.41736425,0.000139,2]
[330816257,1719838233234,-1200.0,0.000139,5]
[330816258,1719838233244,-150.0,0.000139,2]
[330816259,1719838233254,-1165.85028142,0.000139,2]
[330816260,1719838233264,-532.80866116,0.000139,2]
[330816261,1719838233273,-150.0,0.00013903,2]
[330816262,1719838233283,-150.0,0.00013915,2]
[330816263,1719838233293,-150.0,0.00013915,2]
[330816264,1719838233303,-150.0,0.00013924,2]
[330816265,1719838233313,-150.0,0.00013926,2]
[330816266,1719838233323,-150.0,0.00013928,2]
[330816267,1719838233332,-150.0,0.0001393,2]
[330816268,1719838233341,-150.0,0.00013931,2]
[330816269,1719838233351,-150.0,0.00013935,2]
[330816270,1719838233361,-150.0,0.00013935,2]
[330816271,1719838233371,-150.0,0.00013943,2]
[330816272,1719838233380,-416.88024936,0.00013943,2]
[330816273,1719838233390,-150.0,0.00013945,2]
[330816274,1719838233399,-150.0,0.00013947,2]
[330816275,1719838233410,-150.0,0.00013961,2]
[330816276,1719838233419,-150.0,0.00013962,2]
[330816277,1719838233429,-150.0,0.00013968,2]
[330816278,1719838233439,-510.65305477,0.00013971,2]
[330816279,1719838233448,-150.0,0.00013975,2]
[330816280,1719838233458,-150.0,0.00013982,2]
[330816281,1719838233467,-295.1696384,0.00013989,2]
[330816282,1719838233477,-280.0559646,0.0001399,2]
[330816283,1719838233487,-264.9422907,0.0001399,2]
[330816284,1719838233497,-150.0,0.00013994,2]
[330816285,1719838233506,-986.0800485,0.00013999,2]
[330816286,1719838233516,-663.0,0.00014,2]
[330816287,1719838233527,-415870.82378528,0.00014,2]
[330816288,1719838233666,-2199.03870347,0.00014,2]
[330816289,1719838233678,-27808.2,0.00014,2]
[330816290,1719838233692,-10468.8,0.00014,2]
[330816291,1719838233714,-640.72236204,0.00014,2]
[330816292,1719838233726,-2005.57355483,0.00014,2]
[330816293,1719838233742,-10611.14076,0.00014,2]
[330816294,1719838233760,-4095.57269695,0.00014,2]
[330816295,1719838233772,-587.27775175,0.00014,2]
[330816296,1719838233785,-640.24227329,0.00014,2]
[330816298,1719838237610,-625.64470959,0.00012314,2]
[330816299,1719838237622,-328.75485161,0.000139,2]
[330816300,1719838237632,-203.23167379,0.00014,2]
[330816301,1719838237661,-7853.0,0.00014,2]
[330816302,1719838237674,-250.88068151,0.00014,2]
[330816303,1719838237686,-1235.9041344,0.00014,2]
[330816304,1719838237714,-1686.90933021,0.00014,2]
[330816305,1719838237791,-1214.80253227,0.00014,2]
[330816306,1719838237843,-2200.0,0.00014,2]
[330816319,1719838240136,-277.18718567,0.00013574,2]
[330816320,1719838240147,-105.41804617,0.00013999,2]
[330816321,1719838240186,-4713.24960871,0.00013574,2]
[330816322,1719838240197,-387.62197808,0.00013999,2]
[330816323,1719838240207,-100224.7885447,0.00014,2]
[330816324,1719838240227,-3066.3,0.00014,2]
[330816325,1719838240240,-1230.3290353,0.00014,2]
[330816326,1719838240256,-2203.4,0.00014,2]
[330816327,1719838240278,-600.0,0.00014,2]
[330816328,1719838240287,-6036.72511842,0.00014,2]
[330816329,1719838240299,-61102.12720747,0.00014,2]
[330816330,1719838240312,-1047.35734692,0.00014,2]
[330816331,1719838240324,-1755.82471859,0.00014,2]
[330816337,1719838240371,-3830.78588787,0.00014,2]
[330816338,1719838240385,-3855.95227339,0.00014,2]
[330816384,1719838243205,-1252.75750804,0.00013574,2]
[330816386,1719838243216,-240.73383763,0.00013574,2]
[330816389,1719838243227,-14279.49664688,0.00014,2]
[330816391,1719838243240,-1662.404714,0.00014,2]
[330816393,1719838243253,-19941.22519385,0.00014,2]
[330816396,1719838243266,-1913.60066779,0.00014,2]
[330816399,1719838243287,-1245738.83036565,0.00014,2]
[330816401,1719838243299,-323035.78657765,0.00014,2]
[330816404,1719838243314,-5958.007393,0.00014,2]
[330816406,1719838243326,-101277.63039347,0.00014,2]
[330816419,1719838243460,-246.52001212,0.00013999,2]
[330816420,1719838243471,-1342.60646869,0.00014,2]
[330816453,1719838245777,-256397.21986977,0.00014,2]
[330816454,1719838245788,-65051.32080793,0.00014,2]
[330816455,1719838245844,-634368.47682365,0.00014,2]
[330816456,1719838245855,-400027.29923101,0.00014,2]
[330816459,1719838358762,4245.20060409,0.00011199,2]
[330816460,1719838358788,10000.0,0.00011199,2]
[330816461,1719838358812,4888.9043568,0.00011199,2]
[330816462,1719838415728,5111.0956432,0.00011199,2]
[330816463,1719838415754,5357.7043568,0.00011199,2]
[330816464,1719838509561,238.85,0.000221,120]
[330816466,1719838597962,306.26,0.00011199,2]
[330816470,1719838763155,4336.0356432,0.00011199,2]
[330816471,1719838763179,10000.0,0.00011199,2]
[330816472,1719838763204,1091.19337713,0.00011199,2]
[330816474,1719838981068,580.41,0.00010471,2]
[330816476,1719839080196,947.88727782,0.00011199,2]
[330816477,1719839093776,7380.50934505,0.00011199,2]
[330816478,1719839093800,10000.0,0.00011199,2]
[330816479,1719839093824,10000.0,0.00011199,2]
[330816480,1719839093848,10000.0,0.00011199,2]
[330816481,1719839093873,10000.0,0.00011199,2]
[330816482,1719839093896,10000.0,0.00011199,2]
[330816483,1719839093919,10000.0,0.00011199,2]
[330816484,1719839093947,11787.33699612,0.00011199,2]
[330816485,1719839105933,15427.22902033,0.00011199,2]
[330816498,1719839431769,-204.34482384,0.00012,2]
[330816499,1719839431780,-5200.7983,0.00012073,2]
[330816501,1719839431790,-500.0,0.00012636,2]
[330816503,1719839431800,-580.41,0.00012735,2]
[330816505,1719839431809,-384.28,0.00012746,2]
[330816506,1719839431820,-800.0,0.00012872,2]
[330816507,1719839431829,-250.0,0.00012935,2]
[330816508,1719839431839,-1210.46,0.00012982,2]
[330816509,1719839431849,-150.0,0.00013179,2]
[330816510,1719839431859,-300.0,0.00013179,2]
[330816511,1719839431869,-2818.69548085,0.0001318,2]
[330816512,1719839431961,-21071.30451915,0.0001318,2]
[330816513,1719839431974,-11551.86,0.0001318,2]
[330816514,1719839431983,-150.99,0.0001318,2]
[330816515,1719839431995,-200.0,0.0001338,2]
[330816516,1719839432008,-7227.12,0.00013384,2]
[330816517,1719839432019,-250.0,0.00013407,2]
[330816518,1719839432029,-1235.67621916,0.00013472,2]
[330816519,1719839432038,-1286.37920211,0.00013516,7]
[330816520,1719839432050,-193.54674215,0.00013516,2]
[330816521,1719839432060,-499.99,0.00013574,2]
[330816522,1719839432070,-2271.19558722,0.00013574,2]
[330816523,1719839432081,-1264.45674502,0.00013574,2]
[330816524,1719839432091,-210.9333909,0.00013574,2]
[330816525,1719839432100,-155.84857645,0.00013574,2]
[330816526,1719839432112,-309.77695434,0.00013574,2]
[330816527,1719839432126,-181.97803013,0.00013574,2]
[330816529,1719839432136,-276.14588648,0.00013574,2]
[330816531,1719839432146,-155.18759268,0.00013574,2]
[330816533,1719839432156,-468.24460733,0.00013574,2]
[330816535,1719839432171,-6225.6128013,0.00013574,2]
[330816536,1719839432182,-717.65350727,0.00013574,2]
[330816537,1719839432193,-625.31376762,0.00013574,2]
[330816538,1719839432203,-735.7999741,0.00013574,2]
[330816539,1719839432213,-1428.93271972,0.00013574,2]
[330816540,1719839432223,-241.61284913,0.00013574,2]
[330816541,1719839432233,-532.71676313,0.00013574,2]
[330816542,1719839432244,-9700.0161,0.0001359,2]
[330816543,1719839432253,-86597.2048,0.0001369,2]
[330816544,1719839432263,-236.08,0.00013699,2]
[330816545,1719839432273,-163.42,0.00013699,2]
[330816546,1719839432284,-384.32645906,0.00013738,2]
[330816547,1719839432294,-416.88024936,0.00013743,2]
[330816548,1719839432304,-16085.85434132,0.0001379,2]
[330816549,1719839432314,-6248.041063,0.00013799,2]
[330816550,1719839432325,-651.15085502,0.00013889,2]
[330816551,1719839432335,-11709.6662,0.00013899,2]
[330816552,1719839432344,-281.0485,0.00013899,2]
[330816553,1719839432354,-8435.4094,0.00013899,2]
[330816554,1719839432364,-151.21081512,0.000139,2]
[330816555,1719839432374,-214.67559666,0.000139,2]
[330816556,1719839432384,-704.14482935,0.00013989,2]
[330816557,1719839432394,-190.03893347,0.00013989,2]
[330816558,1719839432404,-626.89619143,0.00013989,2]
[330816559,1719839432414,-190.03893347,0.00013989,2]
[330816560,1719839432424,-193.38921262,0.0001399,2]
[330816561,1719839432434,-246.52001212,0.00013999,2]
[330816562,1719839432444,-335180.5556266,0.00013999,2]
[330816563,1719839432454,-539.0,0.00014,2]
[330816564,1719839432463,-1416.26771785,0.00014,2]
[330816565,1719839432532,-472157.78133061,0.00014,2]
[330816566,1719839432557,-535.71783446,0.00014,2]
[330816575,1719839437891,-260.3620255,0.00013574,2]
[330816576,1719839437902,-203.92024674,0.00013574,2]
[330816577,1719839437913,-668.14552289,0.00014,2]
[330816578,1719839437925,-239255.7301235,0.00014,2]
[330816580,1719839439948,-364.12910623,0.00013574,2]